Workbook

Sheet Älgobs
B2: Antal observerade älgar 1994-
B3: 1994 | C3: 1995 | D3: 1996 | E3: 1997 | F3: 1998 | G3: 1999 | H3: 2000 | I3: 2001 | J3: 2002 | K3: 2003 | L3: 2004 | M3: 2005 | N3: 2006 | O3: 2007 | P3: 2008 | Q3: 2009 | R3: 2010 | S3: 2011 | T3: 2012 | U3: 2013 | V3: 2014 | W3: 2015 | X3: 2016 | Y3: 2017 | Z3: 2018 | AA3: 2019
A4: Mandagar | E4: 787 | F4: 517 | G4: 1077 | H4: 998 | I4: 1174 | J4: 1146 | K4: 1102 | L4: 908 | M4: 926 | N4: 1102 | O4: 1085 | P4: 1369 | Q4: 1296 | R4: 1253 | S4: 1414 | T4: 1653 | U4: 1553 | V4: 1407 | W4: 1609 | X4: 1389 | Y4: 1255 | Z4: 1312
A5: Mantimmar | E5: 5454 | F5: 3394 | G5: 7492 | H5: 6375 | I5: 8197 | J5: 7301 | K5: 7327 | L5: 5933 | M5: 6157 | N5: 7851 | O5: 6894 | P5: 8451 | Q5: 7906 | R5: 7834 | S5: 8923 | T5: 8463 | U5: 8964 | V5: 8591 | W5: 10077 | X5: 8134 | Y5: 8196 | Z5: 8750 | AA5: 5240
A6: Tjur | B6: 98 | C6: 83 | D6: 53 | E6: 104 | F6: 66 | G6: 104 | H6: 98 | I6: 85 | J6: 97 | K6: 83 | L6: 67 | M6: 78 | N6: 104 | O6: 155 | P6: 160 | Q6: 164 | R6: 178 | S6: 218 | T6: 185 | U6: 131 | V6: 128 | W6: 163 | X6: 122 | Y6: 84 | Z6: 72 | AA6: 83
A7: Ko | B7: 101 | C7: 88 | D7: 54 | E7: 108 | F7: 85 | G7: 115 | H7: 75 | I7: 79 | J7: 60 | K7: 72 | L7: 58 | M7: 63 | N7: 92 | O7: 118 | P7: 121 | Q7: 98 | R7: 145 | S7: 150 | T7: 141 | U7: 134 | V7: 94 | W7: 108 | X7: 128 | Y7: 75 | Z7: 86 | AA7: 72
A8: Ko+1 | B8: 102 | C8: 77 | D8: 89 | E8: 89 | F8: 66 | G8: 103 | H8: 50 | I8: 71 | J8: 95 | K8: 81 | L8: 55 | M8: 54 | N8: 86 | O8: 95 | P8: 132 | Q8: 105 | R8: 99 | S8: 95 | T8: 93 | U8: 111 | V8: 76 | W8: 109 | X8: 69 | Y8: 70 | Z8: 45 | AA8: 54
A9: Ko+2 | B9: 55 | C9: 62 | D9: 34 | E9: 56 | F9: 25 | G9: 37 | H9: 48 | I9: 28 | J9: 45 | K9: 36 | L9: 21 | M9: 19 | N9: 35 | O9: 47 | P9: 44 | Q9: 45 | R9: 29 | S9: 44 | T9: 40 | U9: 43 | V9: 31 | W9: 20 | X9: 17 | Y9: 19 | Z9: 16 | AA9: 8
A10: Kalv | B10: 14 | C10: 11 | D10: 13 | E10: 6 | F10: 15 | G10: 4 | H10: 16 | I10: 5 | J10: 2 | K10: 4 | L10: 1 | M10: 15 | N10: 5 | O10: 3 | P10: 10 | Q10: 9 | R10: 6 | S10: 10 | T10: 8 | U10: 11 | V10: 4 | W10: 7 | X10: 4 | Y10: 11 | Z10: 2 | AA10: 4
A11: Okänd | B11: 40 | C11: 60 | D11: 46 | E11: 40 | F11: 13 | G11: 37 | H11: 16 | I11: 15 | J11: 15 | K11: 44 | L11: 25 | M11: 40 | N11: 31 | O11: 41 | P11: 46 | Q11: 35 | R11: 47 | S11: 68 | T11: 37 | U11: 58 | V11: 44 | W11: 20 | X11: 31 | Y11: 38 | Z11: 16 | AA11: 9
A12: Totalt vuxen | B12: =B6+B7+B8+B9 -> 356 | C12: =C6+C7+C8+C9 -> 310 | D12: 230 | E12: 357 | F12: 242 | G12: 359 | H12: 271 | I12: 263 | J12: 297 | K12: 272 | L12: 201 | M12: 214 | N12: 317 | O12: =O6+O7+O8+O9 -> 415 | P12: 457 | Q12: 412 | R12: 451 | S12: 507 | T12: 459 | U12: =U6+U7+U8+U9 -> 419 | V12: 329 | W12: 400 | X12: 336 | Y12: 248 | Z12: 219 | AA12: 217
A13: Totalt kalv | B13: =B8+2*B9+B10 -> 226 | C13: =C8+2*C9+C10 -> 212 | D13: 170 | E13: 207 | F13: 131 | G13: 181 | H13: 162 | I13: 132 | J13: 187 | K13: 157 | L13: 98 | M13: 107 | N13: 161 | O13: =O8+2*O9+O10 -> 192 | P13: 230 | Q13: 204 | R13: 163 | S13: 193 | T13: 181 | U13: =U8+2*U9+U10 -> 208 | V13: 142 | W13: 156 | X13: 107 | Y13: 119 | Z13: 79 | AA13: 74
A14: Totalt | B14: =B6+B7+2*B8+3*B9+B10+B11 -> 622 | C14: =C6+C7+2*C8+3*C9+C10+C11 -> 582 | D14: 446 | E14: 604 | F14: 386 | G14: 577 | H14: 449 | I14: 410 | J14: 499 | K14: 473 | L14: 324 | M14: 361 | N14: 509 | O14: =O6+O7+2*O8+3*O9+O10+O11 -> 648 | P14: 733 | Q14: 651 | R14: 661 | S14: 768 | T14: 677 | U14: =U6+U7+2*U8+3*U9+U10+U11 -> 685 | V14: 515 | W14: 576 | X14: 474 | Y14: 405 | Z14: 314 | AA14: 300
A16: tjurandel av vuxna | B16: =B6/B12 -> 0.2752808989 | C16: =C6/C12 -> 0.2677419355 | D16: 0.2304347826 | E16: 0.2913165266 | F16: 0.2727272727 | G16: 0.2896935933 | H16: 0.3616236162 | I16: 0.3231939163 | J16: 0.3265993266 | K16: 0.3051470588 | L16: 0.3333333333 | M16: 0.3644859813 | N16: 0.3280757098 | O16: 0.3734939759 | P16: =P6/P12 -> 0.3501094092 | Q16: 0.3980582524 | R16: 0.3946784922 | S16: 0.4299802761 | T16: 0.4030501089 | U16: 0.3126491647 | V16: 0.3890577508 | W16: =W6/W12 -> 0.4075 | X16: =X6/X12 -> 0.3630952381 | Y16: =Y6/Y12 -> 0.3387096774 | Z16: =Z6/Z12 -> 0.3287671233 | AA16: =AA6/AA12 -> 0.3824884793
A17: kalv/hondjur | B17: =(B8+2*B9+B10)/(B7+B8+B9) -> 0.8759689922 | C17: =(C8+2*C9+C10)/(C7+C8+C9) -> 0.9339207048 | D17: 0.9604519774 | E17: 0.8181818182 | F17: 0.7443181818 | G17: 0.7098039216 | H17: 0.936416185 | I17: 0.7415730337 | J17: 0.935 | K17: 0.8306878307 | L17: 0.7313432836 | M17: 0.7867647059 | N17: 0.7558685446 | O17: 0.7384615385 | P17: =(P8+2*P9+P10)/(P7+P8+P9) -> 0.7744107744 | Q17: 0.8225806452 | R17: 0.5970695971 | S17: 0.6678200692 | T17: 0.6605839416 | U17: 0.7222222222 | V17: 0.7064676617 | W17: =(W8+2*W9+W10)/(W7+W8+W9) -> 0.6582278481 | X17: =(X8+2*X9+X10)/(X7+X8+X9) -> 0.5 | Y17: =(Y8+2*Y9+Y10)/(Y7+Y8+Y9) -> 0.7256097561 | Z17: =(Z8+2*Z9+Z10)/(Z7+Z8+Z9) -> 0.537414966 | AA17: =(AA8+2*AA9+AA10)/(AA7+AA8+AA9) -> 0.552238806
A18: kalvandel av skjutna | B18: ='Fällda djur'!B8/'Fällda djur'!B9 -> 0.4242424242 | C18: ='Fällda djur'!C8/'Fällda djur'!C9 -> 0.4305555556 | D18: ='Fällda djur'!D8/'Fällda djur'!D9 -> 0.4025974026 | E18: ='Fällda djur'!E8/'Fällda djur'!E9 -> 0.4578313253 | F18: ='Fällda djur'!F8/'Fällda djur'!F9 -> 0.3939393939 | G18: ='Fällda djur'!G8/'Fällda djur'!G9 -> 0.3970588235 | H18: ='Fällda djur'!H8/'Fällda djur'!H9 -> 0.3571428571 | I18: ='Fällda djur'!I8/'Fällda djur'!I9 -> 0.3461538462 | J18: ='Fällda djur'!J8/'Fällda djur'!J9 -> 0.4444444444 | K18: ='Fällda djur'!K8/'Fällda djur'!K9 -> 0.4347826087 | L18: ='Fällda djur'!L8/'Fällda djur'!L9 -> 0.54 | M18: ='Fällda djur'!M8/'Fällda djur'!M9 -> 0.5454545455 | N18: ='Fällda djur'!N8/'Fällda djur'!N9 -> 0.5774647887 | O18: ='Fällda djur'!O8/'Fällda djur'!O9 -> 0.6081081081 | P18: ='Fällda djur'!P8/'Fällda djur'!P9 -> 0.57 | Q18: ='Fällda djur'!Q8/'Fällda djur'!Q9 -> 0.6666666667 | R18: ='Fällda djur'!R8/'Fällda djur'!R9 -> 0.5217391304 | S18: ='Fällda djur'!S8/'Fällda djur'!S9 -> 0.4414414414 | T18: ='Fällda djur'!T8/'Fällda djur'!T9 -> 0.537037037 | U18: ='Fällda djur'!U8/'Fällda djur'!U9 -> 0.5309734513 | V18: ='Fällda djur'!V8/'Fällda djur'!V9 -> 0.4666666667 | W18: ='Fällda djur'!W8/'Fällda djur'!W9 -> 0.5 | X18: ='Fällda djur'!X8/'Fällda djur'!X9 -> 0.5333333333 | Y18: ='Fällda djur'!Y8/'Fällda djur'!Y9 -> 0.5454545455 | Z18: ='Fällda djur'!Z8/'Fällda djur'!Z9 -> 0.4888888889 | AA18: ='Fällda djur'!AA8/'Fällda djur'!AA9 -> 
A19: Fördelning
A20: Tjur | B20: =B6/(B6+B7+2*B8+3*B9+B10) -> 0.1683848797 | C20: =C6/(C6+C7+2*C8+3*C9+C10) -> 0.1590038314 | D20: 0.1325 | E20: 0.1843971631 | F20: 0.1769436997 | G20: 0.1925925926 | H20: 0.2263279446 | I20: 0.2151898734 | J20: 0.2004132231 | K20: 0.1934731935 | L20: 0.2240802676 | M20: 0.2429906542 | N20: 0.2175732218 | O20: 0.255354201 | P20: =P6/(P6+P7+2*P8+3*P9+P10) -> 0.2328966521 | Q20: 0.2662337662 | R20: 0.2899022801 | S20: 0.3114285714 | T20: 0.2890625 | U20: 0.2089314195 | V20: 0.2717622081 | W20: =W6/(W6+W7+2*W8+3*W9+W10) -> 0.2931654676 | X20: =X6/(X6+X7+2*X8+3*X9+X10) -> 0.2753950339 | Y20: =Y6/(Y6+Y7+2*Y8+3*Y9+Y10) -> 0.2288828338 | Z20: =Z6/(Z6+Z7+2*Z8+3*Z9+Z10) -> 0.2416107383 | AA20: =AA6/(AA6+AA7+2*AA8+3*AA9+AA10) -> 0.2852233677
A21: Ko/Kviga | B21: =(B7+B8+B9)/(B6+B7+2*B8+3*B9+B10) -> 0.4432989691 | C21: =(C7+C8+C9)/(C6+C7+2*C8+3*C9+C10) -> 0.4348659004 | D21: 0.4425 | E21: 0.4485815603 | F21: 0.471849866 | G21: 0.4722222222 | H21: 0.3995381062 | I21: 0.4506329114 | J21: 0.4132231405 | K21: 0.4405594406 | L21: 0.4481605351 | M21: 0.4236760125 | N21: 0.4456066946 | O21: 0.4283360791 | P21: =(P7+P8+P9)/(P6+P7+2*P8+3*P9+P10) -> 0.4323144105 | Q21: 0.4025974026 | R21: 0.4446254072 | S21: 0.4128571429 | T21: 0.428125 | U21: 0.4593301435 | V21: 0.4267515924 | W21: =(W7+W8+W9)/(W6+W7+2*W8+3*W9+W10) -> 0.4262589928 | X21: =(X7+X8+X9)/(X6+X7+2*X8+3*X9+X10) -> 0.4830699774 | Y21: =(Y7+Y8+Y9)/(Y6+Y7+2*Y8+3*Y9+Y10) -> 0.446866485 | Z21: =(Z7+Z8+Z9)/(Z6+Z7+2*Z8+3*Z9+Z10) -> 0.4932885906 | AA21: =(AA7+AA8+AA9)/(AA6+AA7+2*AA8+3*AA9+AA10) -> 0.4604810997
A22: Kalv | B22: =(B8+2*B9+B10)/(B6+B7+2*B8+3*B9+B10) -> 0.3883161512 | C22: =(C8+2*C9+C10)/(C6+C7+2*C8+3*C9+C10) -> 0.4061302682 | D22: 0.425 | E22: 0.3670212766 | F22: 0.3512064343 | G22: 0.3351851852 | H22: 0.3741339492 | I22: 0.3341772152 | J22: 0.3863636364 | K22: 0.365967366 | L22: 0.3277591973 | M22: 0.3333333333 | N22: 0.3368200837 | O22: 0.3163097199 | P22: =(P8+2*P9+P10)/(P6+P7+2*P8+3*P9+P10) -> 0.3347889374 | Q22: 0.3311688312 | R22: 0.2654723127 | S22: 0.2757142857 | T22: 0.2828125 | U22: 0.331738437 | V22: 0.3014861996 | W22: =(W8+2*W9+W10)/(W6+W7+2*W8+3*W9+W10) -> 0.2805755396 | X22: =(X8+2*X9+X10)/(X6+X7+2*X8+3*X9+X10) -> 0.2415349887 | Y22: =(Y8+2*Y9+Y10)/(Y6+Y7+2*Y8+3*Y9+Y10) -> 0.3242506812 | Z22: =(Z8+2*Z9+Z10)/(Z6+Z7+2*Z8+3*Z9+Z10) -> 0.2651006711 | AA22: =(AA8+2*AA9+AA10)/(AA6+AA7+2*AA8+3*AA9+AA10) -> 0.2542955326
A23: Fördelning hondjur
A24: Ensam | B24: =B7/SUM(B7:B9) -> 0.3914728682 | C24: =C7/SUM(C7:C9) -> 0.3876651982 | D24: 0.3050847458 | E24: 0.4268774704 | F24: 0.4829545455 | G24: 0.4509803922 | H24: 0.4335260116 | I24: 0.4438202247 | J24: 0.3 | K24: 0.380952381 | L24: 0.4328358209 | M24: 0.4632352941 | N24: 0.4319248826 | O24: 0.4538461538 | P24: =P7/SUM(P7:P9) -> 0.4074074074 | Q24: 0.3951612903 | R24: 0.5311355311 | S24: 0.5190311419 | T24: 0.5145985401 | U24: 0.4652777778 | V24: 0.4676616915 | W24: =W7/SUM(W7:W9) -> 0.4556962025 | X24: =X7/SUM(X7:X9) -> 0.5981308411 | Y24: =Y7/SUM(Y7:Y9) -> 0.4573170732 | Z24: =Z7/SUM(Z7:Z9) -> 0.5850340136 | AA24: =AA7/SUM(AA7:AA9) -> 0.5373134328
A25: Ko + 1 kalv | B25: =B8/SUM(B7:B9) -> 0.3953488372 | C25: =C8/SUM(C7:C9) -> 0.3392070485 | D25: 0.5028248588 | E25: 0.3517786561 | F25: 0.375 | G25: 0.4039215686 | H25: 0.289017341 | I25: 0.3988764045 | J25: 0.475 | K25: 0.4285714286 | L25: 0.4104477612 | M25: 0.3970588235 | N25: 0.4037558685 | O25: 0.3653846154 | P25: =P8/SUM(P7:P9) -> 0.4444444444 | Q25: 0.4233870968 | R25: 0.3626373626 | S25: 0.3287197232 | T25: 0.3394160584 | U25: 0.3854166667 | V25: 0.3781094527 | W25: =W8/SUM(W7:W9) -> 0.4599156118 | X25: =X8/SUM(X7:X9) -> 0.3224299065 | Y25: =Y8/SUM(Y7:Y9) -> 0.4268292683 | Z25: =Z8/SUM(Z7:Z9) -> 0.306122449 | AA25: =AA8/SUM(AA7:AA9) -> 0.4029850746
A26: Ko + 2 kalvar | B26: =B9/SUM(B7:B9) -> 0.2131782946 | C26: =C9/SUM(C7:C9) -> 0.2731277533 | D26: 0.1920903955 | E26: 0.2213438735 | F26: 0.1420454545 | G26: 0.1450980392 | H26: 0.2774566474 | I26: 0.1573033708 | J26: 0.225 | K26: 0.1904761905 | L26: 0.1567164179 | M26: 0.1397058824 | N26: 0.1643192488 | O26: 0.1807692308 | P26: =P9/SUM(P7:P9) -> 0.1481481481 | Q26: 0.1814516129 | R26: 0.1062271062 | S26: 0.1522491349 | T26: 0.1459854015 | U26: 0.1493055556 | V26: 0.1542288557 | W26: =W9/SUM(W7:W9) -> 0.08438818565 | X26: =X9/SUM(X7:X9) -> 0.07943925234 | Y26: =Y9/SUM(Y7:Y9) -> 0.1158536585 | Z26: =Z9/SUM(Z7:Z9) -> 0.1088435374 | AA26: =AA9/SUM(AA7:AA9) -> 0.05970149254
A29: Obs per mantimma 1997- (intressantast är 2004- då samma avskjutningsregler gällt!)
B30: 1994 | C30: 1995 | D30: 1996 | E30: 1997 | F30: 1998 | G30: 1999 | H30: 2000 | I30: 2001 | J30: 2002 | K30: 2003 | L30: 2004 | M30: 2005 | N30: 2006 | O30: 2007 | P30: 2008 | Q30: 2009 | R30: 2010 | S30: 2011 | T30: 2012 | U30: 2013 | V30: 2014 | W30: 2015 | X30: 2016 | Y30: 2017 | Z30: 2018 | AA30: 2019
A31: Tjur | E31: =E6/E$5 -> 0.01906857352 | F31: 0.01944608132 | G31: 0.01388147357 | H31: 0.01537254902 | I31: 0.01036964743 | J31: 0.01328585125 | K31: 0.01132796506 | L31: 0.01129276926 | M31: 0.01266850739 | N31: 0.01324672016 | O31: 0.02248331883 | P31: 0.01893267069 | Q31: =Q6/Q$5 -> 0.02074373893 | R31: 0.02272147051 | S31: 0.0244312451 | T31: 0.02185986057 | U31: =U6/U$5 -> 0.0146140116 | V31: 0.01489931323 | W31: 0.01617544904 | X31: 0.01499877059 | Y31: 0.0102489019 | Z31: 0.008228571429 | AA31: 0.01583969466
A32: Ko | E32: =E7/E$5 -> 0.0198019802 | F32: 0.02504419564 | G32: 0.01534970635 | H32: 0.01176470588 | I32: 0.009637672319 | J32: 0.008218052322 | K32: 0.009826668486 | L32: 0.009775830103 | M32: 0.01023225597 | N32: 0.01171825245 | O32: 0.01711633304 | P32: 0.01431783221 | Q32: 0.01239564887 | R32: 0.01850906306 | S32: 0.01681048975 | T32: 0.0166607586 | U32: 0.01494868362 | V32: 0.01094168316 | W32: 0.01071747544 | X32: 0.01573641505 | Y32: 0.009150805271 | Z32: 0.009828571429 | AA32: 0.01374045802
A33: Ko+1 | E33: =2*E8/E$5 -> 0.03263659699 | F33: 0.03889216264 | G33: 0.02749599573 | H33: 0.01568627451 | I33: 0.017323411 | J33: 0.02602383235 | K33: 0.02211000409 | L33: 0.01854036744 | M33: 0.01754101023 | N33: 0.02190803719 | O33: 0.02756019727 | P33: 0.03123890664 | Q33: =2*Q8/Q$5 -> 0.02656210473 | R33: 0.02527444473 | S33: 0.02129328701 | T33: 0.02197802198 | U33: 0.02476572959 | V33: 0.01769293447 | W33: =2*W8/W$5 -> 0.02163342265 | X33: =2*X8/X$5 -> 0.01696582247 | Y33: =2*Y8/Y$5 -> 0.01708150317 | Z33: =2*Z8/Z$5 -> 0.01028571429 | AA33: =2*AA8/AA$5 -> 0.02061068702
A34: Ko+2 | E34: =3*E9/E$5 -> 0.03080308031 | F34: 0.02209781968 | G34: 0.01481580352 | H34: 0.02258823529 | I34: 0.01024765158 | J34: 0.01849061772 | K34: 0.01474000273 | L34: 0.01061857408 | M34: 0.0092577554 | N34: 0.01337409247 | O34: 0.02045256745 | P34: 0.01561945332 | Q34: =3*Q9/Q$5 -> 0.01707563876 | R34: 0.01110543784 | S34: 0.01479323098 | T34: 0.01417936902 | U34: 0.01439089692 | V34: 0.01082528227 | W34: =3*W9/W$5 -> 0.005954153022 | X34: =3*X9/X$5 -> 0.006269977871 | Y34: =3*Y9/Y$5 -> 0.006954612006 | Z34: =3*Z9/Z$5 -> 0.005485714286 | AA34: =3*AA9/AA$5 -> 0.004580152672
A35: Kalv | E35: =E10/E$5 -> 0.001100110011 | F35: 0.004419563936 | G35: 0.0005339028297 | H35: 0.002509803922 | I35: 0.0006099792607 | J35: 0.0002739350774 | K35: 0.000545926027 | L35: 0.0001685487949 | M35: 0.002436251421 | N35: 0.0006368615463 | O35: 0.0004351610096 | P35: 0.001183291918 | Q35: =Q10/Q$5 -> 0.001138375917 | R35: 0.0007658922645 | S35: 0.001120699316 | T35: 0.0009452912679 | U35: =U10/U$5 -> 0.001227130745 | V35: 0.0004656035386 | W35: 0.0006946511859 | X35: 0.0004917629702 | Y35: 0.001342118106 | Z35: 0.0002285714286 | AA35: 0.0007633587786
A36: Okänd | E36: =E11/E$5 -> 0.00733406674 | F36: 0.003830288745 | G36: 0.004938601175 | H36: 0.002509803922 | I36: 0.001829937782 | J36: 0.00205451308 | K36: 0.006005186297 | L36: 0.004213719872 | M36: 0.006496670456 | N36: 0.003948541587 | O36: 0.005947200464 | P36: 0.005443142823 | Q36: 0.004427017455 | R36: 0.005999489405 | S36: 0.007620755351 | T36: 0.004371972114 | U36: 0.006470325747 | V36: 0.005121638924 | W36: 0.001984717674 | X36: 0.003811163019 | Y36: 0.004636408004 | Z36: 0.001828571429 | AA36: 0.001717557252
A37: Hondjur | E37: =SUM(E7:E9)/E$5 -> 0.04638797213 | F37: 0.05185621685 | G37: 0.03403630539 | H37: 0.0271372549 | I37: 0.02171526168 | J37: 0.02739350774 | K37: 0.02579500478 | L37: 0.02258553851 | M37: 0.02208867955 | N37: 0.02713030187 | O37: 0.03771395416 | P37: 0.03514376997 | Q37: =SUM(Q7:Q9)/Q$5 -> 0.03136858082 | R37: 0.03484809803 | S37: 0.03238821024 | T37: 0.03237622592 | U37: 0.03212851406 | V37: 0.02339657781 | W37: =SUM(W7:W9)/W$5 -> 0.02351890444 | X37: =SUM(X7:X9)/X$5 -> 0.02630931891 | Y37: =SUM(Y7:Y9)/Y$5 -> 0.02000976086 | Z37: =SUM(Z7:Z9)/Z$5 -> 0.0168 | AA37: =SUM(AA7:AA9)/AA$5 -> 0.02557251908
A38: Kalv | E38: =E13/E$5 -> 0.03795379538 | F38: 0.03859752504 | G38: 0.02415910304 | H38: 0.02541176471 | I38: 0.01610345248 | J38: 0.02561292974 | K38: 0.02142759656 | L38: 0.0165177819 | M38: 0.01737859347 | N38: 0.02050694179 | O38: 0.02785030461 | P38: 0.02721571412 | Q38: =Q13/Q$5 -> 0.02580318745 | R38: 0.02080673985 | S38: 0.02162949681 | T38: 0.02138721494 | U38: =U13/U$5 -> 0.02320392682 | V38: 0.01652892562 | W38: 0.01548079786 | X38: =X13/X$5 -> 0.01315465945 | Y38: =Y13/Y$5 -> 0.0145192777 | Z38: =Z13/Z$5 -> 0.009028571429 | AA38: =AA13/AA$5 -> 0.0141221374
A39: Totalt | E39: =E14/E$5 -> 0.1107444078 | F39: 0.113730112 | G39: 0.07701548318 | H39: 0.07043137255 | I39: 0.05001829938 | J39: 0.06834680181 | K39: 0.0645557527 | L39: 0.05460980954 | M39: 0.05863245087 | N39: 0.06483250541 | O39: 0.09399477807 | P39: 0.0867352976 | Q39: 0.08234252466 | R39: 0.0843757978 | S39: 0.0860697075 | T39: 0.07999527354 | U39: 0.07641677822 | V39: 0.05994645559 | W39: 0.05715986901 | X39: 0.05827391197 | Y39: 0.04941434846 | Z39: 0.03588571429 | AA39: 0.0572519084
A40: Ändring mot föreg år | F40: =(F39-E39)/E39 -> 0.02696031563 | G40: -0.3228224095 | H40: -0.0854907398 | I40: -0.2898292683 | J40: 0.3664359376 | K40: -0.05546783481 | L40: -0.1540674958 | M40: 0.07366151545 | N40: 0.1057444206 | O40: 0.4498094354 | P40: -0.07723280611 | Q40: -0.05064573541 | R40: 0.02469286857 | S40: =(S39-R39)/R39 -> 0.02007577691 | T40: -0.07057574762 | U40: -0.0447338344 | V40: -0.2155328059 | W40: -0.04648459291 | X40: 0.01948994959 | Y40: -0.1520331004 | Z40: -0.2737794709 | AA40: 0.5953955365

Sheet Fällda djur
B1: Antal fällda djur 1994-
B2: 1994 | C2: 1995 | D2: 1996 | E2: 1997 | F2: 1998 | G2: 1999 | H2: 2000 | I2: 2001 | J2: 2002 | K2: 2003 | L2: 2004 | M2: 2005 | N2: 2006 | O2: 2007 | P2: 2008 | Q2: 2009 | R2: 2010 | S2: 2011 | T2: 2012 | U2: 2013 | V2: 2014 | W2: 2015 | X2: 2106 | Y2: 2017 | Z2: 2018 | AA2: 2019
A3: Fällda Tjur | B3: 19 | C3: 22 | D3: 21 | E3: 27 | F3: 29 | G3: 34 | H3: 40 | I3: 33 | J3: 25 | K3: 25 | L3: 6 | M3: 6 | N3: 10 | O3: 11 | P3: 22 | Q3: 18 | R3: 14 | S3: 26 | T3: 24 | U3: 25 | V3: 21 | W3: 24 | X3: 20 | Y3: 18 | Z3: 12
A4: Fällda Kor | B4: 19 | C4: 19 | D4: 25 | E4: 18 | F4: 31 | G4: 48 | H4: 50 | I4: 18 | J4: 15 | K4: 14 | L4: 17 | M4: 19 | N4: 20 | O4: 18 | P4: 21 | Q4: 15 | R4: 19 | S4: 36 | T4: 26 | U4: 28 | V4: 19 | W4: 21 | X4: 22 | Y4: 22 | Z4: 11
A5: Fällda Tjurkalv | B5: 17 | C5: 16 | D5: 13 | E5: 22 | F5: 21 | G5: 28 | H5: 22 | I5: 15 | J5: 18 | K5: 18 | L5: 14 | M5: 18 | N5: 24 | O5: 30 | P5: 33 | Q5: 28 | R5: 22 | S5: 26 | T5: 25 | U5: 30 | V5: 17 | W5: 21 | X5: 25 | Y5: 29 | Z5: 10
A6: Fällda Kvigkalv | B6: 11 | C6: 15 | D6: 18 | E6: 16 | F6: 18 | G6: 26 | H6: 28 | I6: 12 | J6: 14 | K6: 12 | L6: 13 | M6: 12 | N6: 17 | O6: 15 | P6: 24 | Q6: 38 | R6: 14 | S6: 23 | T6: 33 | U6: 30 | V6: 18 | W6: 24 | X6: 23 | Y6: 19 | Z6: 12
A7: Totalt vuxen | B7: =B3+B4 -> 38 | C7: =C3+C4 -> 41 | D7: 46 | E7: 45 | F7: 60 | G7: 82 | H7: 90 | I7: 51 | J7: 40 | K7: 39 | L7: 23 | M7: 25 | N7: 30 | O7: =O3+O4 -> 29 | P7: 43 | Q7: 33 | R7: 33 | S7: 62 | T7: 50 | U7: =U3+U4 -> 53 | V7: 40 | W7: 45 | X7: 42 | Y7: 40 | Z7: 23
A8: Toltalt kalv | B8: =B5+B6 -> 28 | C8: =C5+C6 -> 31 | D8: 31 | E8: 38 | F8: 39 | G8: 54 | H8: 50 | I8: 27 | J8: 32 | K8: 30 | L8: 27 | M8: 30 | N8: 41 | O8: =O5+O6 -> 45 | P8: 57 | Q8: 66 | R8: 36 | S8: 49 | T8: 58 | U8: =U5+U6 -> 60 | V8: 35 | W8: 45 | X8: 48 | Y8: 48 | Z8: 22
A9: Totalt | B9: =SUM(B3:B6) -> 66 | C9: =SUM(C3:C6) -> 72 | D9: 77 | E9: 83 | F9: 99 | G9: 136 | H9: 140 | I9: 78 | J9: 72 | K9: 69 | L9: 50 | M9: 55 | N9: 71 | O9: =SUM(O3:O6) -> 74 | P9: 100 | Q9: 99 | R9: 69 | S9: 111 | T9: 108 | U9: =SUM(U3:U6) -> 113 | V9: 75 | W9: 90 | X9: 90 | Y9: 88 | Z9: 45 | AA9: 0
A12: Areal Ha totalt | B12: 17306 | C12: 17508 | D12: 17508 | E12: 17508 | F12: 17847 | G12: 23492 | H12: 23729 | I12: 23672 | J12: 22812 | K12: 23197 | L12: 23202 | M12: 22913 | N12: 22973 | O12: 23240 | P12: 26789 | Q12: 26828 | R12: 26550 | S12: 26634 | T12: 28405 | U12: 29490 | V12: 29490 | W12: 31404 | X12: 31292 | Y12: 31292 | Z12: 31292
B15: Antal fällda djur per 1000 Ha 1994-
B16: 1994 | C16: 1995 | D16: 1996 | E16: 1997 | F16: 1998 | G16: 1999 | H16: 2000 | I16: 2001 | J16: 2002 | K16: 2003 | L16: 2004 | M16: 2005 | N16: 2006 | O16: 2007 | P16: 2008 | Q16: 2009 | R16: 2010 | S16: 2011 | T16: 2012 | U16: 2013 | V16: 2014 | W16: 2015 | X16: 2016 | Y16: 2017 | Z16: 2018 | AA16: 2019
A17: Fällda Tjur | B17: =SUM(B3*1000/B12) -> 1.097885127 | C17: =SUM(C3*1000/C12) -> 1.256568426 | D17: 1.199451679 | E17: 1.542152159 | F17: 1.624922956 | G17: 1.447301209 | H17: 1.685701041 | I17: 1.394052045 | J17: 1.095914431 | K17: 1.077725568 | L17: =SUM(L3/L12*1000) -> 0.2585983967 | M17: 0.2618600794 | N17: 0.4352936055 | O17: 0.4733218589 | P17: 0.8212325955 | Q17: 0.6709408081 | R17: =SUM(R3/R12*1000) -> 0.527306968 | S17: 0.9761958399 | T17: 0.8449216687 | U17: 0.8477449983 | V17: 0.7121057986 | W17: 0.7642338556 | X17: 0.6391409945 | Y17: 0.5752268951 | Z17: 0.3834845967
A18: Fällda Kor | B18: =SUM(B4*1000/B12) -> 1.097885127 | C18: =SUM(C4*1000/C12) -> 1.085218186 | D18: 1.427918666 | E18: 1.028101439 | F18: 1.736986608 | G18: 2.043248766 | H18: 2.107126301 | I18: 0.7603920243 | J18: 0.6575486586 | K18: 0.6035263181 | L18: =SUM(L4/L12*1000) -> 0.7326954573 | M18: 0.8292235849 | N18: 0.8705872111 | O18: 0.7745266781 | P18: 0.7839038411 | Q18: 0.5591173401 | R18: =SUM(R4/R12*1000) -> 0.7156308851 | S18: 1.351655778 | T18: 0.9153318078 | U18: 0.9494743981 | V18: 0.6442861987 | W18: 0.6687046236 | X18: 0.703055094 | Y18: 0.703055094 | Z18: 0.351527547
A19: Fällda Tjurkalv | B19: =SUM(B5*1000/B12) -> 0.9823182711 | C19: =SUM(C5*1000/C12) -> 0.9138679461 | D19: 0.7425177062 | E19: 1.256568426 | F19: 1.176668348 | G19: 1.191895113 | H19: 0.9271355725 | I19: 0.6336600203 | J19: 0.7890583903 | K19: 0.7759624089 | L19: =SUM(L5/L12*1000) -> 0.6033962589 | M19: 0.7855802383 | N19: 1.044704653 | O19: 1.290877797 | P19: 1.231848893 | Q19: 1.043685702 | R19: =SUM(R5/R12*1000) -> 0.8286252354 | S19: 0.9761958399 | T19: 0.8801267383 | U19: 1.017293998 | V19: 0.5764665988 | W19: 0.6687046236 | X19: 0.7989262431 | Y19: 0.926754442 | Z19: 0.3195704973
A20: Fällda Kvigkalv | B20: =SUM(B6*1000/B12) -> 0.6356177048 | C20: =SUM(C6*1000/C12) -> 0.8567511995 | D20: 1.028101439 | E20: 0.9138679461 | F20: 1.008572869 | G20: 1.106759748 | H20: 1.179990729 | I20: 0.5069280162 | J20: 0.6137120814 | K20: 0.5173082726 | L20: =SUM(L6/L12*1000) -> 0.5602965262 | M20: 0.5237201589 | N20: 0.7399991294 | O20: 0.6454388985 | P20: 0.8958901041 | Q20: 1.416430595 | R20: =SUM(R6/R12*1000) -> 0.527306968 | S20: 0.8635578584 | T20: 1.161767294 | U20: 1.017293998 | V20: 0.6103763988 | W20: 0.7642338556 | X20: 0.7350121437 | Y20: 0.6071839448 | Z20: 0.3834845967
A21: Totalt vuxen | B21: =B17+B18 -> 2.195770253 | C21: =C17+C18 -> 2.341786612 | D21: 2.627370345 | E21: 2.570253598 | F21: 3.361909565 | G21: 3.490549974 | H21: 3.792827342 | I21: 2.154444069 | J21: 1.75346309 | K21: 1.681251886 | L21: 0.991293854 | M21: 1.091083664 | N21: 1.305880817 | O21: =O17+O18 -> 1.247848537 | P21: 1.605136437 | Q21: 1.230058148 | R21: 1.242937853 | S21: 2.327851618 | T21: 1.760253477 | U21: =U17+U18 -> 1.797219396 | V21: 1.356391997 | W21: 1.432938479 | X21: 1.342196088 | Y21: 1.278281989 | Z21: 0.7350121437
A22: Toltalt kalv | B22: =B19+B20 -> 1.617935976 | C22: =C19+C20 -> 1.770619146 | D22: 1.770619146 | E22: 2.170436372 | F22: 2.185241217 | G22: 2.298654861 | H22: 2.107126301 | I22: 1.140588036 | J22: 1.402770472 | K22: 1.293270682 | L22: 1.163692785 | M22: 1.309300397 | N22: 1.784703783 | O22: =O19+O20 -> 1.936316695 | P22: 2.127738997 | Q22: 2.460116296 | R22: 1.355932203 | S22: 1.839753698 | T22: 2.041894033 | U22: =U19+U20 -> 2.034587996 | V22: 1.186842998 | W22: 1.432938479 | X22: 1.533938387 | Y22: 1.533938387 | Z22: 0.703055094
A23: Totalt | B23: =SUM(B17:B20) -> 3.813706229 | C23: =SUM(C17:C20) -> 4.112405757 | D23: 4.397989491 | E23: 4.74068997 | F23: 5.547150782 | G23: 5.789204836 | H23: 5.899953643 | I23: 3.295032105 | J23: 3.156233561 | K23: 2.974522568 | L23: 2.154986639 | M23: 2.400384061 | N23: 3.090584599 | O23: =SUM(O17:O20) -> 3.184165232 | P23: 3.732875434 | Q23: 3.690174445 | R23: 2.598870056 | S23: 4.167605317 | T23: 3.802147509 | U23: =SUM(U17:U20) -> 3.831807392 | V23: 2.543234995 | W23: 2.865876958 | X23: 2.876134475 | Y23: 2.812220376 | Z23: 1.438067238
A24: Ändring mot föreg år | C24: =(C23-B23)/B23 -> 0.07832263692 | D24: =(D23-C23)/C23 -> 0.06944444444 | E24: 0.07792207792 | F24: 0.1701146492 | G24: 0.04363574447 | H24: 0.01913022784 | I24: -0.4415155941 | J24: -0.04212357868 | K24: -0.05757209984 | L24: -0.2755184773 | M24: 0.1138742199 | N24: 0.2875375441 | O24: 0.03027926596 | P24: 0.1723246633 | Q24: -0.01143916803 | R24: -0.2957324659 | S24: 0.6036220457 | T24: -0.08769011927 | U24: 0.007800823883 | V24: -0.3362831858 | W24: 0.12686282 | X24: 0.003579189569 | Y24: -0.02222222222 | Z24: -0.4886363636

Sheet Grafer jämförelse

Sheet Snittvikt, -ålder etc
A1: 2008 | B1: Snittvikt | G1: Taggsnitt | H1: Snitt utlägg | I1: Snittålder | K1: Äggsnitt
B2: Tjur | C2: Ko | D2: Tjurkalv | E2: Kvigkalv | F2: Kalv | I2: Tjur | J2: Ko
B3: 194.91 | C3: 147.13 | D3: 61.45 | E3: 58.95 | F3: 60.44 | G3: 5.95 | H3: 85.45 | I3: 5 | J3: 4.157894737 | K3: 1.31
A4: inkl övriga | B4: 197.5 | G4: 6.48 | H4: 87 | I4: 5.05 | J4: 4.2 | K4: 1.42
A5: Antal | B5: 22 | C5: 16 | D5: 31 | E5: 21 | F5: =D5+E5 -> 52 | G5: 22 | H5: 20 | I5: 18 | J5: 18 | K5: 13
A6: Totalt | B6: 22 | C6: 21 | D6: 33 | E6: 24 | F6: =D6+E6 -> 57 | G6: =B6 -> 22 | H6: =B6 -> 22 | I6: =B6 -> 22 | J6: =C6 -> 21 | K6: =C6 -> 21
A7: Andel | B7: =B5/B6 -> 1 | C7: 0.7619047619 | D7: 0.9393939394 | E7: 0.875 | F7: 0.9122807018 | G7: 1 | H7: 0.9090909091 | I7: =I5/I6 -> 0.8181818182 | J7: =J5/J6 -> 0.8571428571 | K7: =K5/K6 -> 0.619047619
A9: 2009 | B9: Snittvikt | G9: Taggsnitt | H9: Snitt utlägg | I9: Snittålder | K9: Äggsnitt
B10: Tjur | C10: Ko | D10: Tjurkalv | E10: Kvigkalv | F10: Kalv | I10: Tjur | J10: Ko
B11: 175.5294118 | C11: 154.5 | D11: 57.61538462 | E11: 53.84375 | F11: 55.53448276 | G11: 5.444444444 | H11: 73.16666667 | I11: 3.166666667 | J11: 6 | K11: 0.1428571429
A12: inkl övriga | B12: 175.5294118 | G12: 5.444444444 | H12: 73.16666667 | I12: 3.230769231 | J12: 5.615384615 | K12: 0.125
A13: Antal | B13: 17 | C13: 12 | D13: 26 | E13: 32 | F13: 58 | G13: 18 | H13: 12 | I13: 17 | J13: 14 | K13: 7
A14: Totalt | B14: 18 | C14: 15 | D14: 28 | E14: 38 | F14: 66 | G14: 18 | H14: 18 | I14: 18 | J14: 15 | K14: 15
A15: Andel | B15: 0.9444444444 | C15: 0.8 | D15: 0.9285714286 | E15: 0.8421052632 | F15: 0.8787878788 | G15: 1 | H15: 0.6666666667 | I15: 0.9444444444 | J15: 0.9333333333 | K15: 0.4666666667
A17: 2010 | B17: Snittvikt | G17: Taggsnitt | H17: Snitt utlägg | I17: Snittålder | K17: Äggsnitt
B18: Tjur | C18: Ko | D18: Tjurkalv | E18: Kvigkalv | F18: Kalv | I18: Tjur | J18: Ko
B19: 176.8333333 | C19: 144.75 | D19: 53.83333333 | E19: 48.30769231 | F19: 51.51612903 | G19: 4.714285714 | H19: 71.9 | I19: 3.25 | J19: 2.714285714 | K19: 0
A20: inkl övriga | B20: 176.8333333 | G20: 4.714285714 | H20: 71.9 | I20: 3.222222222 | J20: 3.375 | K20: 0
A21: Antal | B21: 12 | C21: 16 | D21: 18 | E21: 13 | F21: 31 | G21: 14 | H21: 10 | I21: 9 | J21: 12 | K21: 11
A22: Totalt | B22: 14 | C22: 19 | D22: 22 | E22: 14 | F22: 36 | G22: 14 | H22: 14 | I22: 14 | J22: 19 | K22: 19
A23: Andel | B23: 0.8571428571 | C23: 0.8421052632 | D23: 0.8181818182 | E23: 0.9285714286 | F23: 0.8611111111 | G23: 1 | H23: 0.7142857143 | I23: 0.6428571429 | J23: 0.6315789474 | K23: 0.5789473684
A25: 2011 | B25: Snittvikt | G25: Taggsnitt | H25: Snitt utlägg | I25: Snittålder | K25: Äggsnitt
B26: Tjur | C26: Ko | D26: Tjurkalv | E26: Kvigkalv | F26: Kalv | I26: Tjur | J26: Ko
B27: 164.6315789 | C27: 143.6451613 | D27: 54.61904762 | E27: 49.66666667 | F27: 52.33333333 | G27: 5.038461538 | H27: 78.91666667 | I27: 0.1818181818 | J27: 0 | K27: 0.6666666667
A28: inkl övriga | B28: 167 | G28: 5.625 | H28: 80.69230769 | I28: 0.1818181818 | K28: 0.6153846154
A29: Antal | B29: 19 | C29: 31 | D29: 21 | E29: 18 | F29: 39 | G29: 26 | H29: 12 | I29: 11 | J29: 16 | K29: 12
A30: Totalt | B30: 26 | C30: 36 | D30: 26 | E30: 22 | F30: 48 | G30: 26 | H30: 26 | I30: 26 | J30: 36 | K30: 36
A31: Andel | B31: 0.7307692308 | C31: 0.8611111111 | D31: 0.8076923077 | E31: 0.8181818182 | F31: 0.8125 | G31: 1 | H31: 0.4615384615 | I31: 0.4230769231 | J31: 0.4444444444 | K31: 0.3333333333
A33: 2012 | B33: Snittvikt | G33: Taggsnitt | H33: Snitt utlägg | I33: Snittålder | K33: Äggsnitt
B34: Tjur | C34: Ko | D34: Tjurkalv | E34: Kvigkalv | F34: Kalv | I34: Tjur | J34: Ko
B35: 167.8823529 | C35: 147.5454545 | D35: 54.3 | E35: 53.48275862 | F35: 53.81632653 | G35: 6.157894737 | H35: 88.27272727 | I35: 2.5 | J35: 3.461538462 | K35: 1
A36: inkl övriga | B36: 0 | G36: 0 | H36: 0 | I36: 0 | J36: 0 | K36: 0
A37: Antal | B37: 17 | C37: 22 | D37: 20 | E37: 29 | F37: 49 | G37: 19 | H37: 11 | I37: 12 | J37: 13 | K37: 6
A38: Totalt | B38: 23 | C38: 27 | D38: 24 | E38: 34 | F38: 58 | G38: 23 | H38: 23 | I38: 23 | J38: 27 | K38: 27
A39: Andel | B39: 0.7391304348 | C39: 0.8148148148 | D39: 0.8333333333 | E39: 0.8529411765 | F39: 0.8448275862 | G39: 0.8260869565 | H39: 0.4782608696 | I39: 0.5217391304 | J39: 0.4814814815 | K39: 0.2222222222
A41: 2013 | B41: Snittvikt | G41: Taggsnitt | H41: Snitt utlägg | I41: Snittålder | K41: Äggsnitt
B42: Tjur | C42: Ko | D42: Tjurkalv | E42: Kvigkalv | F42: Kalv | I42: Tjur | J42: Ko
B43: 159.04 | C43: 142.19 | D43: 48.64 | E43: 50.42857143 | F43: 49.12962963 | G43: 4.136363636 | H43: 68.08333333 | I43: 3.294117647 | J43: 4 | K43: 1
A44: inkl övriga | B44: 0 | G44: 0 | H44: 0 | I44: 0 | J44: 0 | K44: 0
A45: Antal | B45: 22 | C45: 26 | D45: 26 | E45: 28 | F45: 54 | G45: 22 | H45: 12 | I45: 17 | J45: 17 | K45: 10
A46: Totalt | B46: 25 | C46: 28 | D46: 30 | E46: 30 | F46: 60 | G46: 25 | H46: 25 | I46: 25 | J46: 28 | K46: 28
A47: Andel | B47: 0.88 | C47: 0.9285714286 | D47: 0.8666666667 | E47: 0.9333333333 | F47: 0.9 | G47: 0.88 | H47: 0.48 | I47: 0.68 | J47: 0.6071428571 | K47: 0.3571428571
A49: 2014 | B49: Snittvikt | G49: Taggsnitt | H49: Snitt utlägg | I49: Snittålder | K49: Äggsnitt
B50: Tjur | C50: Ko | D50: Tjurkalv | E50: Kvigkalv | F50: Kalv | I50: Tjur | J50: Ko
B51: 182.6842105 | C51: 146.8421053 | D51: 52.94117647 | E51: 52.6 | F51: 52.78125 | G51: 5.736842105 | H51: 84.15384615 | I51: 3.8 | J51: 3.2 | K51: 1.142857143
A52: inkl övriga | B52: 0 | G52: 0 | H52: 0 | I52: 0 | J52: 0.3636363636 | K52: 0
A53: Antal | B53: 19 | C53: 19 | D53: 17 | E53: 15 | F53: 32 | G53: 19 | H53: 13 | I53: 10 | J53: 10 | K53: 7
A54: Totalt | B54: 20 | C54: 19 | D54: 17 | E54: 18 | F54: 35 | G54: 20 | H54: 20 | I54: 20 | J54: 19 | K54: 19
A55: Andel | B55: 0.95 | C55: 1 | D55: 1 | E55: 0.8333333333 | F55: 0.9142857143 | G55: 0.95 | H55: 0.65 | I55: 0.5 | J55: 0.5263157895 | K55: 0.3684210526
A57: 2015 | B57: Snittvikt | G57: Taggsnitt | H57: Snitt utlägg | I57: Snittålder | K57: Äggsnitt
B58: Tjur | C58: Ko | D58: Tjurkalv | E58: Kvigkalv | F58: Kalv | I58: Tjur | J58: Ko
B59: 169.75 | C59: 133.3076923 | D59: 54.57142857 | E59: 56.61538462 | F59: 55.55555556 | G59: 5.47826087 | H59: 85.33333333 | I59: 3.111111111 | J59: 1.25 | K59: 0.8
A60: inkl övriga | B60: 0 | G60: 0 | H60: 0 | I60: 0 | J60: 0 | K60: 0
A61: Antal | B61: 20 | C61: 13 | D61: 14 | E61: 13 | F61: 27 | G61: 23 | H61: 12 | I61: 9 | J61: 4 | K61: 5
A62: Totalt | B62: 24 | C62: 21 | D62: 21 | E62: 24 | F62: 45 | G62: 24 | H62: 24 | I62: 24 | J62: 21 | K62: 21
A63: Andel | B63: 0.8333333333 | C63: 0.619047619 | D63: 0.6666666667 | E63: 0.5416666667 | F63: 0.6 | G63: 0.9583333333 | H63: 0.5 | I63: 0.375 | J63: 0.1904761905 | K63: 0.2380952381
A65: 2016 | B65: Snittvikt | G65: Taggsnitt | H65: Snitt utlägg | I65: Snittålder | K65: Äggsnitt
B66: Tjur | C66: Ko | D66: Tjurkalv | E66: Kvigkalv | F66: Kalv | I66: Tjur | J66: Ko
B67: 174.94 | C67: 147.35 | D67: 60.39 | E67: 54.5 | F67: 57.81 | G67: 4.63 | H67: 70.6 | I67: 3.36 | J67: 2.77 | K67: 0.92
A68: inkl övriga | B68: 0 | G68: 0 | H68: 0 | I68: 0 | J68: 0 | K68: 0
A69: Antal | B69: 16 | C69: 17 | D69: 18 | E69: 15 | F69: 31 | G69: 16 | H69: 10 | I69: 11 | J69: 13 | K69: 13
A70: Totalt | B70: 20 | C70: 21 | D70: 25 | E70: 22 | F70: 47 | G70: 20 | H70: 20 | I70: 20 | J70: 21 | K70: 21
A71: Andel | B71: 0.8 | C71: 0.81 | D71: 0.72 | E71: 0.68 | F71: 0.66 | G71: 0.8 | H71: 0.5 | I71: 0.555 | J71: 0.62 | K71: 0.62
A73: 2017 | B73: Snittvikt | G73: Taggsnitt | H73: Snitt utlägg | I73: Snittålder | K73: Äggsnitt
B74: Tjur | C74: Ko | D74: Tjurkalv | E74: Kvigkalv | F74: Kalv | I74: Tjur | J74: Ko
B75: 179.45 | C75: 138.46 | D75: 55.36 | E75: 56.3 | F75: 55.81 | G75: 5.82 | H75: 77.33 | I75: 3.67 | J75: 3.13 | K75: 0.8
A76: inkl övriga
A77: Antal | B77: 11 | C77: 13 | D77: 11 | E77: 10 | F77: 21 | G77: 17 | H77: 3 | I77: 9 | J77: 15 | K77: 5
A78: Totalt | B78: 18 | C78: 22 | D78: 29 | E78: 19 | F78: 48 | G78: 18 | H78: 18 | I78: 18 | J78: 22 | K78: 22
A79: Andel | B79: 0.61 | C79: 0.59 | D79: 0.38 | E79: 0.53 | F79: 0.44 | G79: 0.94 | H79: 0.17 | I79: 0.5 | J79: 0.68 | K79: 0.23
A82: 2018 | B82: Snittvikt | G82: Taggsnitt | H82: Snitt utlägg | I82: Snittålder | K82: Äggsnitt
B83: Tjur | C83: Ko | D83: Tjurkalv | E83: Kvigkalv | F83: Kalv | I83: Tjur | J83: Ko
B84: 167.6 | C84: 139.3 | D84: 49.6 | E84: 42.2 | F84: 44.5 | G84: 4.6 | H84: 81 | I84: 3.2 | J84: 3.2 | K84: 0.67
A85: inkl övriga
A86: Antal | B86: 10 | C86: 10 | D86: 7 | E86: 10 | F86: 17 | G86: 10 | H86: 5 | I86: 10 | J86: 10 | K86: 7
A87: Totalt | B87: 12 | C87: 11 | D87: 10 | E87: 12 | F87: 22 | G87: 83 | H87: 10 | I87: 12 | J87: 11 | K87: 11
A88: Andel | B88: 0.83 | C88: 0.909 | D88: 0.7 | E88: 0.83 | F88: 0.77 | G88: 1 | H88: 0.5 | I88: 0.83 | J88: 0.9 | K88: 0.64
A91: 2019 | B91: Snittvikt | G91: Taggsnitt | H91: Snitt utlägg | I91: Snittålder | K91: Äggsnitt
B92: Tjur | C92: Ko | D92: Tjurkalv | E92: Kvigkalv | F92: Kalv | I92: Tjur | J92: Ko
A94: inkl övriga
A95: Antal
A96: Totalt
A97: Andel
B100: 2008 | C100: 2009 | D100: 2010 | E100: 2011 | F100: 2012 | G100: 2013 | H100: 2014 | I100: 2015 | J100: 2016 | K100: 2017 | L100: 2018 | M100: 2019
A101: Vikt tjur | B101: =B3 -> 194.91 | C101: =B11 -> 175.5294118 | D101: =B19 -> 176.8333333 | E101: =B27 -> 164.6315789 | F101: =B35 -> 167.8823529 | G101: =B43 -> 159.04 | H101: =B51 -> 182.6842105 | I101: =B59 -> 169.75 | J101: =B67 -> 174.94 | K101: =B75 -> 179.45 | L101: =B84 -> 167.6
A102: Vikt hondjur | B102: =C3 -> 147.13 | C102: =C11 -> 154.5 | D102: =C19 -> 144.75 | E102: =C27 -> 143.6451613 | F102: =C35 -> 147.5454545 | G102: =C43 -> 142.19 | H102: =C51 -> 146.8421053 | I102: =C59 -> 133.3076923 | J102: =C67 -> 147.35 | K102: =C75 -> 138.46 | L102: =C84 -> 139.3
A103: vikt tjurkalv | B103: =D3 -> 61.45 | C103: =D11 -> 57.61538462 | D103: =D19 -> 53.83333333 | E103: =D27 -> 54.61904762 | F103: =D35 -> 54.3 | G103: =D43 -> 48.64 | H103: =D51 -> 52.94117647 | I103: =D59 -> 54.57142857 | J103: =D67 -> 60.39 | K103: 55.36 | L103: =D84 -> 49.6
A104: vikt kvigkalv | B104: =E3 -> 58.95 | C104: =E11 -> 53.84375 | D104: =E19 -> 48.30769231 | E104: =E27 -> 49.66666667 | F104: =E35 -> 53.48275862 | G104: =E43 -> 50.42857143 | H104: =E51 -> 52.6 | I104: =E59 -> 56.61538462 | J104: =E67 -> 54.5 | K104: 56.3 | L104: =E84 -> 42.2
A105: viktsnitt kalv | B105: =F3 -> 60.44 | C105: =F11 -> 55.53448276 | D105: =F19 -> 51.51612903 | E105: =F27 -> 52.33333333 | F105: =F35 -> 53.81632653 | G105: =F43 -> 49.12962963 | H105: =F51 -> 52.78125 | I105: =F59 -> 55.55555556 | J105: =F67 -> 57.81 | K105: =F75 -> 55.81 | L105: =F84 -> 44.5
A106: ålder tjur | B106: =I3 -> 5 | C106: =I11 -> 3.166666667 | D106: =I19 -> 3.25 | F106: =I35 -> 2.5 | G106: =I43 -> 3.294117647 | H106: =I51 -> 3.8 | I106: =I59 -> 3.111111111 | J106: =I67 -> 3.36 | K106: =I75 -> 3.67 | L106: =I84 -> 3.2
A107: ålder hondjur | B107: =J3 -> 4.157894737 | C107: =J11 -> 6 | D107: =J19 -> 2.714285714 | F107: =J35 -> 3.461538462 | G107: =J43 -> 4 | H107: =J51 -> 3.2 | I107: =J59 -> 1.25 | J107: =J67 -> 2.77 | K107: =J75 -> 3.13 | L107: =J84 -> 3.2
A108: taggsnitt | B108: =G3 -> 5.95 | C108: =G11 -> 5.444444444 | D108: =G19 -> 4.714285714 | E108: =G27 -> 5.038461538 | F108: =G35 -> 6.157894737 | G108: =G43 -> 4.136363636 | H108: =G51 -> 5.736842105 | I108: =G59 -> 5.47826087 | J108: =G67 -> 4.63 | K108: =G75 -> 5.82 | L108: =G84 -> 4.6
A109: snittutlägg | B109: =H3 -> 85.45 | C109: =H11 -> 73.16666667 | D109: =H19 -> 71.9 | E109: =H27 -> 78.91666667 | F109: =H35 -> 88.27272727 | G109: =H43 -> 68.08333333 | H109: =H51 -> 84.15384615 | I109: =H59 -> 85.33333333 | J109: =H67 -> 70.6 | K109: =H75 -> 77.33 | L109: =H84 -> 81
A110: äggsnitt | B110: =K3 -> 1.31 | E110: =K27 -> 0.6666666667 | F110: =K35 -> 1 | G110: =K43 -> 1 | H110: =K51 -> 1.142857143 | I110: =K59 -> 0.8 | J110: =K67 -> 0.92 | K110: =K75 -> 0.8 | L110: =K84 -> 0.67
